[Event "Titled Tuesday Blitz May 17 Late 2022"]
[White "Abdyzhapar, Asylbek"]
[Black "Paravyan, David"]
[WhiteFideId "13800337"]
[BlackFideId "4194985"]
[WhiteElo "2331"]
[BlackElo "2569"]
[Result "0-1"]
[Round "06"]
[TimeControl "180+1"]
[Date "2022.05.17"]
[WhiteClock "0:00:03"]
[BlackClock "0:00:05"]

1. e4 {[%clk 0:02:59]}  e5 {[%clk 0:02:50]} 2. Nf3 {[%clk 0:02:59]}  Nf6 {[%clk 0:02:51]} 3. Nc3 {[%clk 0:02:53]}  Nc6 {[%clk 0:02:49]} 4. Bb5 {[%clk 0:02:52]}  Nd4 {[%clk 0:02:49]} 5. Bc4 {[%clk 0:02:51]}  Bc5 {[%clk 0:02:48]} 6. d3 {[%clk 0:02:49]}  d6 {[%clk 0:02:48]} 7. Nxd4 {[%clk 0:02:48]}  Bxd4 {[%clk 0:02:48]} 8. O-O {[%clk 0:02:47]}  c6 {[%clk 0:02:42]} 9. Be3 {[%clk 0:02:46]}  Bxc3 {[%clk 0:02:34]} 10. bxc3 {[%clk 0:02:46]}  O-O {[%clk 0:02:35]} 11. Bg5 {[%clk 0:02:43]}  h6 {[%clk 0:02:34]} 12. Bh4 {[%clk 0:02:42]}  g5 {[%clk 0:02:35]} 13. Bg3 {[%clk 0:02:42]}  Kg7 {[%clk 0:02:07]} 14. Bb3 {[%clk 0:02:41]}  Qe7 {[%clk 0:02:06]} 15. Qe2 {[%clk 0:02:39]}  Be6 {[%clk 0:02:03]} 16. Rae1 {[%clk 0:02:39]}  a5 {[%clk 0:02:03]} 17. d4 {[%clk 0:02:35]}  a4 {[%clk 0:02:00]} 18. Bc4 {[%clk 0:02:32]}  b5 {[%clk 0:01:53]} 19. Bd3 {[%clk 0:02:31]}  Bxa2 {[%clk 0:01:53]} 20. Ra1 {[%clk 0:02:29]}  Bc4 {[%clk 0:01:53]} 21. Bxc4 {[%clk 0:02:27]}  bxc4 {[%clk 0:01:54]} 22. dxe5 {[%clk 0:02:26]}  dxe5 {[%clk 0:01:55]} 23. Qxc4 {[%clk 0:02:25]}  a3 {[%clk 0:01:51]} 24. Qxc6 {[%clk 0:02:19]}  Nh5 {[%clk 0:01:49]} 25. Ra2 {[%clk 0:01:52]}  Rfc8 {[%clk 0:01:46]} 26. Qd5 {[%clk 0:01:52]}  Nf4 {[%clk 0:01:45]} 27. Bxf4 {[%clk 0:01:50]}  gxf4 {[%clk 0:01:43]} 28. Rfa1 {[%clk 0:01:50]}  Ra4 {[%clk 0:01:36]} 29. Qb3 {[%clk 0:01:43]}  Rca8 {[%clk 0:01:30]} 30. f3 {[%clk 0:01:39]}  Qc5+ {[%clk 0:01:16]} 31. Kh1 {[%clk 0:01:38]}  R4a5 {[%clk 0:01:08]} 32. h3 {[%clk 0:01:35]}  Rb5 {[%clk 0:01:06]} 33. Qd5 {[%clk 0:01:35]}  Qxd5 {[%clk 0:01:03]} 34. exd5 {[%clk 0:01:35]}  Rxd5 {[%clk 0:01:04]} 35. Rxa3 {[%clk 0:01:34]}  Rxa3 {[%clk 0:01:05]} 36. Rxa3 {[%clk 0:01:34]}  Rd2 {[%clk 0:00:52]} 37. Ra2 {[%clk 0:01:33]}  f5 {[%clk 0:00:50]} 38. Ra5 {[%clk 0:01:30]}  Kf6 {[%clk 0:00:49]} 39. Ra6+ {[%clk 0:01:30]}  Kg5 {[%clk 0:00:50]} 40. Re6 {[%clk 0:01:29]}  Re2 {[%clk 0:00:30]} 41. Kg1 {[%clk 0:01:28]}  e4 {[%clk 0:00:26]} 42. fxe4 {[%clk 0:01:27]}  fxe4 {[%clk 0:00:25]} 43. Kf1 {[%clk 0:01:23]}  Kf5 {[%clk 0:00:19]} 44. Rxh6 {[%clk 0:00:44]}  Rxc2 {[%clk 0:00:20]} 45. Rh5+ {[%clk 0:00:43]}  Ke6 {[%clk 0:00:19]} 46. Rc5 {[%clk 0:00:43]}  e3 {[%clk 0:00:17]} 47. h4 {[%clk 0:00:40]}  Kf6 {[%clk 0:00:17]} 48. h5 {[%clk 0:00:39]}  Rf2+ {[%clk 0:00:13]} 49. Kg1 {[%clk 0:00:39]}  Rd2 {[%clk 0:00:13]} 50. Kf1 {[%clk 0:00:39]}  Rf2+ {[%clk 0:00:13]} 51. Kg1 {[%clk 0:00:39]}  Rb2 {[%clk 0:00:14]} 52. Kf1 {[%clk 0:00:37]}  Rb1+ {[%clk 0:00:09]} 53. Ke2 {[%clk 0:00:36]}  Rg1 {[%clk 0:00:10]} 54. Rc6+ {[%clk 0:00:24]}  Kf5 {[%clk 0:00:09]} 55. Rg6 {[%clk 0:00:23]}  Rh1 {[%clk 0:00:08]} 56. g4+ {[%clk 0:00:18]}  Ke5 {[%clk 0:00:07]} 57. Rg8 {[%clk 0:00:12]}  Rh2+ {[%clk 0:00:08]} 58. Kd3 {[%clk 0:00:12]}  Rd2+ {[%clk 0:00:08]} 59. Kc4 {[%clk 0:00:12]}  f3 {[%clk 0:00:07]} 60. Rf8 {[%clk 0:00:11]}  f2 {[%clk 0:00:06]} 61. h6 {[%clk 0:00:12]}  Rd7 {[%clk 0:00:05]} 62. Re8+ {[%clk 0:00:02]}  Kf4 {[%clk 0:00:05]} 63. Rf8+ {[%clk 0:00:02]}  Kxg4 {[%clk 0:00:05]} 64. h7 {[%clk 0:00:03]}  Rxh7 {[%clk 0:00:05]} 65. Kd3 {[%clk 0:00:03]}  Rh1 {[%clk 0:00:05]} 0-1


[Site "https://www.chess.com"]

[Event "Titled Tuesday Blitz May 17 Late 2022"]
[White "Bortnyk, Olexandr"]
[Black "Hansen, Eric"]
[WhiteFideId "14120828"]
[BlackFideId "2606771"]
[WhiteElo "2723"]
[BlackElo "2568"]
[Result "0-1"]
[Round "06"]
[TimeControl "180+1"]
[Date "2022.05.17"]
[WhiteClock "0:00:02"]
[BlackClock "0:00:12"]

1. e4 {[%clk 0:02:57]}  c5 {[%clk 0:02:56]} 2. Be2 {[%clk 0:02:57]}  d5 {[%clk 0:02:54]} 3. d3 {[%clk 0:02:57]}  Nc6 {[%clk 0:02:54]} 4. f4 {[%clk 0:02:57]}  dxe4 {[%clk 0:02:45]} 5. dxe4 {[%clk 0:02:58]}  Qxd1+ {[%clk 0:02:45]} 6. Bxd1 {[%clk 0:02:59]}  b6 {[%clk 0:02:44]} 7. Nf3 {[%clk 0:02:57]}  Bb7 {[%clk 0:02:45]} 8. c3 {[%clk 0:02:56]}  Nf6 {[%clk 0:02:42]} 9. Bc2 {[%clk 0:02:56]}  e6 {[%clk 0:02:31]} 10. Na3 {[%clk 0:02:53]}  Be7 {[%clk 0:02:26]} 11. e5 {[%clk 0:02:43]}  Nd5 {[%clk 0:02:26]} 12. Nc4 {[%clk 0:02:31]}  O-O-O {[%clk 0:02:21]} 13. a4 {[%clk 0:02:28]}  Ba6 {[%clk 0:02:18]} 14. Na3 {[%clk 0:02:25]}  Nc7 {[%clk 0:02:07]} 15. Be3 {[%clk 0:02:04]}  h5 {[%clk 0:02:06]} 16. Kf2 {[%clk 0:01:59]}  g6 {[%clk 0:02:04]} 17. Rhd1 {[%clk 0:01:32]}  Rxd1 {[%clk 0:02:04]} 18. Rxd1 {[%clk 0:01:32]}  Rd8 {[%clk 0:02:05]} 19. Rxd8+ {[%clk 0:01:32]}  Kxd8 {[%clk 0:02:06]} 20. b3 {[%clk 0:01:16]}  Kd7 {[%clk 0:02:00]} 21. c4 {[%clk 0:01:15]}  Bb7 {[%clk 0:01:54]} 22. Nb1 {[%clk 0:01:10]}  Nb4 {[%clk 0:01:47]} 23. Bd1 {[%clk 0:01:10]}  Nca6 {[%clk 0:01:36]} 24. Nc3 {[%clk 0:01:08]}  Nb8 {[%clk 0:01:36]} 25. g3 {[%clk 0:01:02]}  N8c6 {[%clk 0:01:36]} 26. Ke2 {[%clk 0:00:58]}  Na5 {[%clk 0:01:34]} 27. Nd2 {[%clk 0:00:54]}  Nac6 {[%clk 0:01:27]} 28. Nde4 {[%clk 0:00:48]}  Nd4+ {[%clk 0:01:25]} 29. Kd2 {[%clk 0:00:48]}  Nf5 {[%clk 0:01:18]} 30. Bf2 {[%clk 0:00:47]}  Nd4 {[%clk 0:01:18]} 31. h3 {[%clk 0:00:45]}  Bc6 {[%clk 0:01:17]} 32. g4 {[%clk 0:00:44]}  hxg4 {[%clk 0:01:18]} 33. hxg4 {[%clk 0:00:43]}  Bb7 {[%clk 0:01:18]} 34. g5 {[%clk 0:00:37]}  Bc6 {[%clk 0:01:14]} 35. Nf6+ {[%clk 0:00:22]}  Bxf6 {[%clk 0:01:06]} 36. gxf6 {[%clk 0:00:23]}  Nf3+ {[%clk 0:01:01]} 37. Bxf3 {[%clk 0:00:24]}  Bxf3 {[%clk 0:01:01]} 38. Nb5 {[%clk 0:00:24]}  Nc6 {[%clk 0:00:57]} 39. Nd6 {[%clk 0:00:22]}  Nd8 {[%clk 0:00:57]} 40. Kc3 {[%clk 0:00:22]}  a5 {[%clk 0:00:54]} 41. Be3 {[%clk 0:00:19]}  Bg2 {[%clk 0:00:52]} 42. Kb2 {[%clk 0:00:14]}  Bf3 {[%clk 0:00:52]} 43. Bd2 {[%clk 0:00:06]}  Kc6 {[%clk 0:00:48]} 44. Be1 {[%clk 0:00:06]}  Bg2 {[%clk 0:00:47]} 45. Bf2 {[%clk 0:00:07]}  Bf3 {[%clk 0:00:47]} 46. Bg1 {[%clk 0:00:08]}  Bg2 {[%clk 0:00:47]} 47. Bh2 {[%clk 0:00:08]}  Bf3 {[%clk 0:00:48]} 48. Bg3 {[%clk 0:00:09]}  Bg2 {[%clk 0:00:46]} 49. Bh4 {[%clk 0:00:09]}  Bf3 {[%clk 0:00:45]} 50. Bg5 {[%clk 0:00:10]}  Bh5 {[%clk 0:00:33]} 51. Kc3 {[%clk 0:00:08]}  Kd7 {[%clk 0:00:31]} 52. Kd2 {[%clk 0:00:09]}  Bg4 {[%clk 0:00:22]} 53. Bh6 {[%clk 0:00:09]}  g5 {[%clk 0:00:20]} 54. Bxg5 {[%clk 0:00:07]}  Bh5 {[%clk 0:00:20]} 55. Bh4 {[%clk 0:00:07]}  Bg6 {[%clk 0:00:19]} 56. Kc3 {[%clk 0:00:07]}  Kc7 {[%clk 0:00:18]} 57. Bf2 {[%clk 0:00:07]}  Nb7 {[%clk 0:00:18]} 58. Nb5+ {[%clk 0:00:06]}  Kd7 {[%clk 0:00:18]} 59. Kd2 {[%clk 0:00:07]}  Be4 {[%clk 0:00:18]} 60. Nc3 {[%clk 0:00:07]}  Bf5 {[%clk 0:00:17]} 61. Ne2 {[%clk 0:00:07]}  Bg4 {[%clk 0:00:15]} 62. Ng3 {[%clk 0:00:07]}  Nd8 {[%clk 0:00:15]} 63. Ne4 {[%clk 0:00:06]}  Nc6 {[%clk 0:00:15]} 64. Kc3 {[%clk 0:00:04]}  Bf5 {[%clk 0:00:14]} 65. Ng5 {[%clk 0:00:02]}  Bg6 {[%clk 0:00:14]} 66. Nf3 {[%clk 0:00:03]}  Bh5 {[%clk 0:00:14]} 67. Nh4 {[%clk 0:00:03]}  Bg4 {[%clk 0:00:13]} 68. Be3 {[%clk 0:00:03]}  Nb4 {[%clk 0:00:13]} 69. Bd2 {[%clk 0:00:03]}  Nc6 {[%clk 0:00:13]} 70. Be3 {[%clk 0:00:04]}  Nb4 {[%clk 0:00:13]} 71. Kd2 {[%clk 0:00:04]}  Nc6 {[%clk 0:00:14]} 72. Ng2 {[%clk 0:00:05]}  Bh3 {[%clk 0:00:14]} 73. Ne1 {[%clk 0:00:05]}  Bf5 {[%clk 0:00:13]} 74. Nf3 {[%clk 0:00:05]}  Bg4 {[%clk 0:00:14]} 75. Ng5 {[%clk 0:00:04]}  Bh5 {[%clk 0:00:15]} 76. Ne4 {[%clk 0:00:04]}  Nd8 {[%clk 0:00:14]} 77. Nc3 {[%clk 0:00:02]}  Kc6 {[%clk 0:00:14]} 78. Bf2 {[%clk 0:00:02]}  Kd7 {[%clk 0:00:13]} 79. Ne4 {[%clk 0:00:02]}  Nb7 {[%clk 0:00:13]} 80. Ng3 {[%clk 0:00:02]}  Bg6 {[%clk 0:00:13]} 81. Kc3 {[%clk 0:00:01]}  Nd8 {[%clk 0:00:14]} 82. Be3 {[%clk 0:00:02]}  Nc6 {[%clk 0:00:14]} 83. Ne2 {[%clk 0:00:02]}  Nb4 {[%clk 0:00:14]} 84. Ng1 {[%clk 0:00:03]}  Na2+ {[%clk 0:00:14]} 85. Kd2 {[%clk 0:00:02]}  Nb4 {[%clk 0:00:15]} 86. Nf3 {[%clk 0:00:03]}  Bc2 {[%clk 0:00:14]} 87. Kc3 {[%clk 0:00:02]}  Bg6 {[%clk 0:00:14]} 88. Nh4 {[%clk 0:00:03]}  Be4 {[%clk 0:00:14]} 89. Bf2 {[%clk 0:00:03]}  Kc6 {[%clk 0:00:13]} 90. f5 {[%clk 0:00:02]}  Kd7 {[%clk 0:00:12]} 0-1


[Site "https://www.chess.com"]

[Event "Titled Tuesday Blitz May 17 Late 2022"]
[White "Demchenko, Anton"]
[Black "Kavyev, Ruslan"]
[WhiteFideId "4160258"]
[BlackFideId "34110981"]
[WhiteElo "2539"]
[BlackElo "2180"]
[Result "0-1"]
[Round "06"]
[TimeControl "180+1"]
[Date "2022.05.17"]
[WhiteClock "0:00:02"]
[BlackClock "0:00:06"]

1. e4 {[%clk 0:03:00]}  c5 {[%clk 0:02:51]} 2. Nf3 {[%clk 0:03:01]}  d6 {[%clk 0:02:51]} 3. d4 {[%clk 0:03:01]}  cxd4 {[%clk 0:02:52]} 4. Nxd4 {[%clk 0:03:02]}  Nf6 {[%clk 0:02:52]} 5. Nc3 {[%clk 0:03:03]}  a6 {[%clk 0:02:53]} 6. a4 {[%clk 0:03:03]}  e5 {[%clk 0:02:50]} 7. Nf3 {[%clk 0:03:03]}  Be7 {[%clk 0:02:49]} 8. Bg5 {[%clk 0:03:04]}  Be6 {[%clk 0:02:49]} 9. Bxf6 {[%clk 0:03:04]}  Bxf6 {[%clk 0:02:50]} 10. Nd5 {[%clk 0:03:05]}  Nd7 {[%clk 0:02:50]} 11. Bc4 {[%clk 0:03:02]}  Nb6 {[%clk 0:02:49]} 12. Nxf6+ {[%clk 0:03:02]}  Qxf6 {[%clk 0:02:47]} 13. Bxe6 {[%clk 0:03:03]}  Qxe6 {[%clk 0:02:48]} 14. O-O {[%clk 0:03:03]}  O-O {[%clk 0:02:40]} 15. Re1 {[%clk 0:03:04]}  Rac8 {[%clk 0:02:24]} 16. b3 {[%clk 0:03:04]}  Rc3 {[%clk 0:02:15]} 17. Re2 {[%clk 0:03:04]}  Rfc8 {[%clk 0:02:15]} 18. Rd2 {[%clk 0:03:05]}  R8c6 {[%clk 0:02:14]} 19. Ne1 {[%clk 0:02:55]}  h6 {[%clk 0:02:07]} 20. Nd3 {[%clk 0:02:56]}  a5 {[%clk 0:01:57]} 21. h3 {[%clk 0:02:42]}  d5 {[%clk 0:01:54]} 22. exd5 {[%clk 0:02:39]}  Nxd5 {[%clk 0:01:55]} 23. Nxe5 {[%clk 0:02:40]}  Qxe5 {[%clk 0:01:33]} 24. Rxd5 {[%clk 0:02:40]}  Qe4 {[%clk 0:01:28]} 25. Rd4 {[%clk 0:01:32]}  Qxc2 {[%clk 0:01:25]} 26. Rd8+ {[%clk 0:01:32]}  Kh7 {[%clk 0:01:23]} 27. Qd5 {[%clk 0:01:33]}  Qg6 {[%clk 0:01:10]} 28. Qxa5 {[%clk 0:01:12]}  Rxh3 {[%clk 0:00:52]} 29. Qa8 {[%clk 0:01:11]}  Qf6 {[%clk 0:00:27]} 30. Rf1 {[%clk 0:00:38]}  Rxb3 {[%clk 0:00:25]} 31. Rh8+ {[%clk 0:00:37]}  Kg6 {[%clk 0:00:25]} 32. Qe8 {[%clk 0:00:38]}  Rb4 {[%clk 0:00:15]} 33. Qg8 {[%clk 0:00:31]}  Rh4 {[%clk 0:00:13]} 34. Qh7+ {[%clk 0:00:31]}  Kg5 {[%clk 0:00:14]} 35. Rg8 {[%clk 0:00:25]}  g6 {[%clk 0:00:13]} 36. Rf8 {[%clk 0:00:11]}  Rc7 {[%clk 0:00:11]} 37. Re8 {[%clk 0:00:09]}  Rc3 {[%clk 0:00:08]} 38. Qg8 {[%clk 0:00:05]}  Qf4 {[%clk 0:00:07]} 39. Rd1 {[%clk 0:00:01]}  Qh2+ {[%clk 0:00:07]} 40. Kf1 {[%clk 0:00:01]}  Qh1+ {[%clk 0:00:06]} 41. Ke2 {[%clk 0:00:02]}  Qxg2 {[%clk 0:00:06]} 0-1


[Site "https://www.chess.com"]

[Event "Titled Tuesday Blitz May 17 Late 2022"]
[White "Donchenko, Alexander"]
[Black "Xiong, Jeffery"]
[WhiteFideId "24603295"]
[BlackFideId "2047640"]
[WhiteElo "2572"]
[BlackElo "2727"]
[Result "1-0"]
[Round "06"]
[TimeControl "180+1"]
[Date "2022.05.17"]
[WhiteClock "0:00:44"]
[BlackClock "0:00:05"]

1. c4 {[%clk 0:03:00]}  e5 {[%clk 0:02:59]} 2. g3 {[%clk 0:03:01]}  Be7 {[%clk 0:02:59]} 3. Bg2 {[%clk 0:03:01]}  f5 {[%clk 0:03:00]} 4. d4 {[%clk 0:03:00]}  d6 {[%clk 0:03:00]} 5. Nc3 {[%clk 0:03:00]}  Nf6 {[%clk 0:03:01]} 6. Bg5 {[%clk 0:02:58]}  c6 {[%clk 0:02:55]} 7. Nf3 {[%clk 0:02:56]}  e4 {[%clk 0:02:53]} 8. Nd2 {[%clk 0:02:52]}  O-O {[%clk 0:02:54]} 9. e3 {[%clk 0:02:51]}  Na6 {[%clk 0:02:52]} 10. Rb1 {[%clk 0:02:48]}  Nc7 {[%clk 0:02:52]} 11. b4 {[%clk 0:02:48]}  Be6 {[%clk 0:02:49]} 12. O-O {[%clk 0:02:46]}  Rc8 {[%clk 0:02:40]} 13. a4 {[%clk 0:02:44]}  h6 {[%clk 0:02:38]} 14. Bxf6 {[%clk 0:02:44]}  Bxf6 {[%clk 0:02:39]} 15. b5 {[%clk 0:02:42]}  c5 {[%clk 0:02:39]} 16. Ne2 {[%clk 0:02:40]}  d5 {[%clk 0:02:32]} 17. b6 {[%clk 0:02:02]}  axb6 {[%clk 0:02:31]} 18. Rxb6 {[%clk 0:02:03]}  dxc4 {[%clk 0:02:29]} 19. dxc5 {[%clk 0:02:01]}  c3 {[%clk 0:02:28]} 20. Nb3 {[%clk 0:01:55]}  Qxd1 {[%clk 0:02:17]} 21. Rxd1 {[%clk 0:01:56]}  Bc4 {[%clk 0:02:18]} 22. Ned4 {[%clk 0:01:38]}  Rfd8 {[%clk 0:01:36]} 23. Bf1 {[%clk 0:01:35]}  Bd5 {[%clk 0:00:47]} 24. Rc1 {[%clk 0:01:31]}  Bxb3 {[%clk 0:00:37]} 25. Rxb3 {[%clk 0:01:28]}  Bxd4 {[%clk 0:00:35]} 26. exd4 {[%clk 0:01:29]}  Rxd4 {[%clk 0:00:36]} 27. Rcxc3 {[%clk 0:01:24]}  Rxa4 {[%clk 0:00:33]} 28. Rxb7 {[%clk 0:01:23]}  Nd5 {[%clk 0:00:28]} 29. Rc1 {[%clk 0:01:17]}  Kh7 {[%clk 0:00:24]} 30. c6 {[%clk 0:01:13]}  Rd4 {[%clk 0:00:23]} 31. c7 {[%clk 0:01:10]}  e3 {[%clk 0:00:14]} 32. fxe3 {[%clk 0:01:03]}  Nxe3 {[%clk 0:00:15]} 33. Ba6 {[%clk 0:01:02]}  Nd5 {[%clk 0:00:13]} 34. Ra7 {[%clk 0:01:02]}  Rxc7 {[%clk 0:00:10]} 35. Raxc7 {[%clk 0:01:02]}  Nxc7 {[%clk 0:00:11]} 36. Rxc7 {[%clk 0:01:02]}  Rd1+ {[%clk 0:00:12]} 37. Bf1 {[%clk 0:01:02]}  Kg6 {[%clk 0:00:11]} 38. Rc6+ {[%clk 0:01:02]}  Kf7 {[%clk 0:00:11]} 39. Kf2 {[%clk 0:01:01]}  Rd2+ {[%clk 0:00:11]} 40. Be2 {[%clk 0:01:02]}  g6 {[%clk 0:00:11]} 41. Ke3 {[%clk 0:01:01]}  Rb2 {[%clk 0:00:12]} 42. Rd6 {[%clk 0:00:59]}  Kg7 {[%clk 0:00:12]} 43. Rd2 {[%clk 0:00:59]}  Rb3+ {[%clk 0:00:12]} 44. Rd3 {[%clk 0:00:59]}  Rb4 {[%clk 0:00:11]} 45. Rd7+ {[%clk 0:00:59]}  Kf6 {[%clk 0:00:11]} 46. Rd6+ {[%clk 0:00:59]}  Kg7 {[%clk 0:00:11]} 47. h4 {[%clk 0:00:52]}  Rb3+ {[%clk 0:00:11]} 48. Bd3 {[%clk 0:00:52]}  Ra3 {[%clk 0:00:10]} 49. Kf4 {[%clk 0:00:51]}  Ra4+ {[%clk 0:00:10]} 50. Ke3 {[%clk 0:00:51]}  Ra3 {[%clk 0:00:11]} 51. Rd4 {[%clk 0:00:51]}  Ra1 {[%clk 0:00:09]} 52. Kf4 {[%clk 0:00:50]}  Re1 {[%clk 0:00:05]} 53. Rd7+ {[%clk 0:00:48]}  Kf6 {[%clk 0:00:06]} 54. Rd6+ {[%clk 0:00:49]}  Kg7 {[%clk 0:00:06]} 55. h5 {[%clk 0:00:48]}  gxh5 {[%clk 0:00:07]} 56. Bxf5 {[%clk 0:00:47]}  Rf1+ {[%clk 0:00:08]} 57. Ke5 {[%clk 0:00:46]}  Rf3 {[%clk 0:00:06]} 58. Rd7+ {[%clk 0:00:46]}  Kf8 {[%clk 0:00:05]} 59. Kf6 {[%clk 0:00:45]}  Ke8 {[%clk 0:00:05]} 60. Rc7 {[%clk 0:00:44]} 1-0


[Site "https://www.chess.com"]

[Event "Titled Tuesday Blitz May 17 Late 2022"]
[White "Dubov, Daniil"]
[Black "Pichot, Alan"]
[WhiteFideId "24126055"]
[BlackFideId "110973"]
[WhiteElo "2791"]
[BlackElo "2579"]
[Result "0-1"]
[Round "06"]
[TimeControl "180+1"]
[Date "2022.05.17"]
[WhiteClock "0:00:07"]
[BlackClock "0:00:05"]

1. d4 {[%clk 0:03:00]}  Nf6 {[%clk 0:02:58]} 2. Nf3 {[%clk 0:03:01]}  d5 {[%clk 0:02:57]} 3. c4 {[%clk 0:03:02]}  e6 {[%clk 0:02:56]} 4. g3 {[%clk 0:03:03]}  Be7 {[%clk 0:02:53]} 5. Bg2 {[%clk 0:03:04]}  O-O {[%clk 0:02:53]} 6. O-O {[%clk 0:03:03]}  dxc4 {[%clk 0:02:54]} 7. Qc2 {[%clk 0:03:04]}  a6 {[%clk 0:02:54]} 8. a4 {[%clk 0:03:04]}  Bd7 {[%clk 0:02:54]} 9. Qxc4 {[%clk 0:03:03]}  Bc6 {[%clk 0:02:54]} 10. Nc3 {[%clk 0:03:03]}  a5 {[%clk 0:02:53]} 11. Bg5 {[%clk 0:03:02]}  Na6 {[%clk 0:02:52]} 12. Rfd1 {[%clk 0:03:01]}  Nb4 {[%clk 0:02:46]} 13. Bxf6 {[%clk 0:02:57]}  Bxf6 {[%clk 0:02:47]} 14. e4 {[%clk 0:02:57]}  Qb8 {[%clk 0:02:41]} 15. Rac1 {[%clk 0:02:54]}  Rd8 {[%clk 0:02:37]} 16. h4 {[%clk 0:02:48]}  h6 {[%clk 0:02:36]} 17. Rd2 {[%clk 0:02:44]}  Be8 {[%clk 0:02:22]} 18. Rcd1 {[%clk 0:02:42]}  c6 {[%clk 0:02:22]} 19. Qe2 {[%clk 0:02:40]}  Qa7 {[%clk 0:02:18]} 20. h5 {[%clk 0:02:33]}  Qb6 {[%clk 0:02:14]} 21. e5 {[%clk 0:02:29]}  Be7 {[%clk 0:02:13]} 22. Nh2 {[%clk 0:02:30]}  Rd7 {[%clk 0:01:58]} 23. Be4 {[%clk 0:02:29]}  Rad8 {[%clk 0:01:58]} 24. Nf3 {[%clk 0:02:25]}  Qa6 {[%clk 0:01:48]} 25. Qe1 {[%clk 0:02:17]}  Qc4 {[%clk 0:01:44]} 26. Bb1 {[%clk 0:02:14]}  f5 {[%clk 0:01:35]} 27. exf6 {[%clk 0:02:13]}  Bxf6 {[%clk 0:01:35]} 28. Qe4 {[%clk 0:02:08]}  Bxh5 {[%clk 0:01:34]} 29. g4 {[%clk 0:01:52]}  Bf7 {[%clk 0:01:33]} 30. Qh7+ {[%clk 0:01:53]}  Kf8 {[%clk 0:01:33]} 31. Ne4 {[%clk 0:01:54]}  Qb3 {[%clk 0:01:17]} 32. Nxf6 {[%clk 0:01:17]}  gxf6 {[%clk 0:01:17]} 33. Nh4 {[%clk 0:01:17]}  Ke7 {[%clk 0:01:08]} 34. Qxh6 {[%clk 0:01:11]}  Rg8 {[%clk 0:01:05]} 35. f3 {[%clk 0:00:51]}  Nd5 {[%clk 0:00:56]} 36. Bh7 {[%clk 0:00:48]}  Rg5 {[%clk 0:00:54]} 37. Be4 {[%clk 0:00:45]}  Qe3+ {[%clk 0:00:50]} 38. Kf1 {[%clk 0:00:42]}  Rxg4 {[%clk 0:00:47]} 39. Qxe3 {[%clk 0:00:31]}  Nxe3+ {[%clk 0:00:48]} 40. Ke2 {[%clk 0:00:32]}  Rxe4 {[%clk 0:00:43]} 41. fxe4 {[%clk 0:00:30]}  Nxd1 {[%clk 0:00:44]} 42. Kxd1 {[%clk 0:00:30]}  e5 {[%clk 0:00:41]} 43. Nf5+ {[%clk 0:00:29]}  Kd8 {[%clk 0:00:41]} 44. Kc2 {[%clk 0:00:29]}  Be6 {[%clk 0:00:37]} 45. Rf2 {[%clk 0:00:14]}  exd4 {[%clk 0:00:35]} 46. Kd3 {[%clk 0:00:13]}  c5 {[%clk 0:00:34]} 47. Ng3 {[%clk 0:00:14]}  c4+ {[%clk 0:00:34]} 48. Kd2 {[%clk 0:00:14]}  Ke7 {[%clk 0:00:34]} 49. Nh5 {[%clk 0:00:14]}  Kd6 {[%clk 0:00:26]} 50. Rxf6 {[%clk 0:00:12]}  Ke5 {[%clk 0:00:23]} 51. Rg6 {[%clk 0:00:11]}  Rf7 {[%clk 0:00:21]} 52. Ke2 {[%clk 0:00:11]}  c3 {[%clk 0:00:18]} 53. bxc3 {[%clk 0:00:12]}  Bc4+ {[%clk 0:00:15]} 54. Kd2 {[%clk 0:00:09]}  Rf2+ {[%clk 0:00:14]} 55. Ke1 {[%clk 0:00:09]}  Re2+ {[%clk 0:00:14]} 56. Kd1 {[%clk 0:00:09]}  dxc3 {[%clk 0:00:14]} 57. Rg5+ {[%clk 0:00:10]}  Kd4 {[%clk 0:00:14]} 58. Ng3 {[%clk 0:00:09]}  Rd2+ {[%clk 0:00:12]} 59. Ke1 {[%clk 0:00:09]}  Ra2 {[%clk 0:00:08]} 60. Nf5+ {[%clk 0:00:09]}  Ke5 {[%clk 0:00:03]} 61. Rh5 {[%clk 0:00:05]}  Ra1+ {[%clk 0:00:04]} 62. Kf2 {[%clk 0:00:05]}  Kf4 {[%clk 0:00:04]} 63. Rh4+ {[%clk 0:00:03]}  Kg5 {[%clk 0:00:04]} 64. Rh8 {[%clk 0:00:01]}  c2 {[%clk 0:00:04]} 65. Nd4 {[%clk 0:00:02]}  c1=Q {[%clk 0:00:04]} 66. Nf3+ {[%clk 0:00:03]}  Kf6 {[%clk 0:00:04]} 67. Kg3 {[%clk 0:00:03]}  Qe3 {[%clk 0:00:03]} 68. Rh4 {[%clk 0:00:04]}  Ra3 {[%clk 0:00:03]} 69. Rf4+ {[%clk 0:00:05]}  Ke7 {[%clk 0:00:04]} 70. Kg4 {[%clk 0:00:05]}  Be6+ {[%clk 0:00:04]} 71. Kg5 {[%clk 0:00:06]}  Rxa4 {[%clk 0:00:04]} 72. Ne5 {[%clk 0:00:06]}  Rxe4 {[%clk 0:00:04]} 73. Ng6+ {[%clk 0:00:07]}  Kd6 {[%clk 0:00:04]} 74. Kh6 {[%clk 0:00:07]}  Rxf4 {[%clk 0:00:04]} 75. Kg7 {[%clk 0:00:08]}  Rf7+ {[%clk 0:00:04]} 76. Kg8 {[%clk 0:00:08]}  Qg5 {[%clk 0:00:04]} 77. Kh8 {[%clk 0:00:07]}  Qh6+ {[%clk 0:00:05]} 78. Kg8 {[%clk 0:00:07]}  Qg7# {[%clk 0:00:05]} 0-1


[Site "https://www.chess.com"]

[Event "Titled Tuesday Blitz May 17 Late 2022"]
[White "Holt, Conrad"]
[Black "Norowitz, Yaacov"]
[WhiteFideId "2034387"]
[BlackFideId "2024799"]
[WhiteElo "2586"]
[BlackElo "2412"]
[Result "1-0"]
[Round "06"]
[TimeControl "180+1"]
[Date "2022.05.17"]
[WhiteClock "0:00:56"]
[BlackClock "0:00:04"]

1. d4 {[%clk 0:03:00]}  Nf6 {[%clk 0:00:43]} 2. c4 {[%clk 0:02:59]}  e5 {[%clk 0:00:44]} 3. dxe5 {[%clk 0:02:59]}  Ne4 {[%clk 0:00:44]} 4. Nf3 {[%clk 0:02:54]}  Nc6 {[%clk 0:00:43]} 5. a3 {[%clk 0:02:52]}  d6 {[%clk 0:00:42]} 6. Qc2 {[%clk 0:02:20]}  d5 {[%clk 0:00:40]} 7. e3 {[%clk 0:02:14]}  g6 {[%clk 0:00:40]} 8. cxd5 {[%clk 0:02:03]}  Qxd5 {[%clk 0:00:41]} 9. Bc4 {[%clk 0:02:01]}  Qa5+ {[%clk 0:00:41]} 10. Nbd2 {[%clk 0:01:57]}  Bf5 {[%clk 0:00:41]} 11. O-O {[%clk 0:01:52]}  Nxd2 {[%clk 0:00:40]} 12. Qxd2 {[%clk 0:01:50]}  Bg7 {[%clk 0:00:30]} 13. b4 {[%clk 0:01:33]}  Qa4 {[%clk 0:00:30]} 14. Bb2 {[%clk 0:01:30]}  O-O {[%clk 0:00:29]} 15. Nd4 {[%clk 0:01:17]}  Nxe5 {[%clk 0:00:20]} 16. Bb5 {[%clk 0:01:15]}  Qxb5 {[%clk 0:00:11]} 17. Nxb5 {[%clk 0:01:14]}  Nc4 {[%clk 0:00:12]} 18. Qe2 {[%clk 0:01:08]}  Nxb2 {[%clk 0:00:11]} 19. Nd4 {[%clk 0:01:06]}  Bxd4 {[%clk 0:00:09]} 20. exd4 {[%clk 0:01:05]}  Nd3 {[%clk 0:00:08]} 21. g4 {[%clk 0:00:58]}  Rfe8 {[%clk 0:00:04]} 22. Qd2 {[%clk 0:00:56]} 1-0


[Site "https://www.chess.com"]